bitfinex/quotes_BTCUSD_20250817
["timestamp","ask_amount","ask_price","bid_price","bid_amount"]
[1755432995136,0.07294802,118440.0,118430.0,0.92710988]
[1755432995262,0.07294802,118440.0,118430.0,1.05558988]
[1755432995671,0.07294802,118440.0,118430.0,0.92916988]
[1755432995877,0.00225616,118440.0,118430.0,1.05764988]
[1755432996088,0.00014616,118440.0,118430.0,1.08568988]
[1755433004657,0.01014616,118440.0,118430.0,1.08568988]
[1755433023569,0.01014616,118440.0,118430.0,0.81898988]
[1755433027215,9.99999915,118450.0,118440.0,0.21131089]
[1755433027420,9.99999915,118450.0,118440.0,0.51136618]
[1755433028141,9.99999915,118450.0,118440.0,0.53673118]
[1755433028543,9.99999915,118450.0,118440.0,0.53873118]
[1755433029156,9.99999915,118450.0,118440.0,0.87989118]
[1755433029590,9.99999915,118450.0,118440.0,0.88189118]
[1755433029792,10.00399915,118450.0,118440.0,0.88189118]
[1755433031029,10.00399915,118450.0,118440.0,0.87989118]
[1755433031260,10.00399915,118450.0,118440.0,1.14959118]
[1755433031478,9.99999915,118450.0,118440.0,1.14959118]
[1755433031891,9.99999915,118450.0,118440.0,1.15059118]
[1755433034718,9.99999915,118450.0,118440.0,1.14743118]
[1755433040102,10.00207915,118450.0,118440.0,1.14743118]
[1755433041224,10.00526915,118450.0,118440.0,1.14743118]
[1755433041463,10.00207915,118450.0,118440.0,1.14743118]
[1755433041693,9.99999915,118450.0,118440.0,1.14743118]
[1755433044521,9.99999915,118450.0,118440.0,1.14663118]
[1755433047504,10.00207915,118450.0,118440.0,1.14663118]
[1755433048811,10.00526915,118450.0,118440.0,1.14663118]
[1755433054261,10.00207915,118450.0,118440.0,1.14663118]
[1755433054462,9.99999915,118450.0,118440.0,1.14663118]
[1755433055608,10.00516915,118450.0,118440.0,1.14663118]
[1755433071388,10.00516915,118450.0,118440.0,1.14465118]
[1755433074898,9.61646085,118450.0,118440.0,1.14672118]
[1755433075129,9.39379765,118450.0,118440.0,1.14672118]
[1755433075377,9.39379765,118450.0,118440.0,1.14465118]
[1755433079658,9.39379765,118450.0,118440.0,1.01621118]
[1755433080021,9.39379765,118450.0,118440.0,1.14461118]
[1755433080437,9.39379765,118450.0,118440.0,1.01621118]
[1755433080638,9.39379765,118450.0,118440.0,1.14461118]
[1755433083511,9.39379765,118450.0,118440.0,1.01621118]
[1755433083721,9.39379765,118450.0,118440.0,1.14461118]
[1755433085184,9.39379765,118450.0,118440.0,1.01621118]
[1755433085399,9.39379765,118450.0,118440.0,1.14461118]
[1755433085611,9.39379765,118450.0,118440.0,1.01621118]
[1755433086035,9.39379765,118450.0,118440.0,1.14461118]
[1755433089006,9.39379765,118450.0,118440.0,1.01621118]
[1755433089212,9.39379765,118450.0,118440.0,1.14461118]
[1755433102249,9.39062765,118450.0,118440.0,1.14663118]
[1755433102648,9.39384765,118450.0,118440.0,1.14663118]
[1755433102850,9.39384765,118450.0,118440.0,1.14461118]
[1755433110407,9.39384765,118450.0,118440.0,1.14397118]
[1755433124661,9.39384765,118450.0,118440.0,1.01557118]
[1755433124885,9.39384765,118450.0,118440.0,1.14397118]
[1755433143354,9.39384765,118450.0,118440.0,1.14419118]
[1755433147180,9.39384765,118450.0,118440.0,1.14626118]
[1755433147366,9.39062765,118450.0,118440.0,1.14626118]
[1755433147581,9.38862765,118450.0,118440.0,1.14626118]
[1755433147787,9.39360765,118450.0,118440.0,1.14626118]
[1755433149008,9.39360765,118450.0,118440.0,1.14419118]
[1755433173421,9.39360765,118450.0,118440.0,1.01579118]
[1755433173621,9.39360765,118450.0,118440.0,1.14415118]
[1755433176467,9.39360765,118450.0,118440.0,1.14363118]
[1755433195667,9.39360765,118450.0,118440.0,1.01527118]
[1755433195905,9.39360765,118450.0,118440.0,1.12059118]
[1755433196176,9.39571183,118450.0,118440.0,1.12059118]
[1755433198172,9.39571183,118450.0,118440.0,0.90624994]
[1755433198633,9.39571183,118450.0,118440.0,1.03576994]
[1755433199959,9.56455944,118450.0,118440.0,1.03576994]
[1755433200196,9.56455944,118450.0,118440.0,1.03572994]
[1755433200435,9.56455944,118450.0,118440.0,0.39854807]
[1755433200700,9.56455944,118450.0,118440.0,0.50274307]
[1755433200895,9.56455944,118450.0,118440.0,0.23604307]
[1755433201123,9.69411944,118450.0,118440.0,0.25841407]
[1755433201361,9.69411944,118450.0,118440.0,0.23304307]
[1755433201604,9.7391054,118450.0,118440.0,0.13078]
[1755433201840,9.69491944,118450.0,118440.0,0.00422]
[1755433202283,9.69491944,118450.0,118440.0,0.01766902]
[1755433202835,9.69491944,118450.0,118440.0,0.01966902]
[1755433204070,9.69791944,118450.0,118440.0,0.02066902]
[1755433204820,9.69791944,118450.0,118440.0,0.01866902]
[1755433205023,9.56755944,118450.0,118440.0,0.22261993]
[1755433205248,9.39871183,118450.0,118440.0,0.22361993]
[1755433206110,9.56755944,118450.0,118440.0,0.24899193]
[1755433206321,9.39871183,118450.0,118440.0,0.24899193]
[1755433207195,9.56755944,118450.0,118440.0,0.24899193]
[1755433207524,9.39871183,118450.0,118440.0,0.24899193]
[1755433207997,9.39871183,118450.0,118440.0,0.33380598]
[1755433210257,9.39660765,118450.0,118440.0,0.33380598]
[1755433215197,9.39871183,118450.0,118440.0,0.33380598]
[1755433215406,9.39871183,118450.0,118440.0,0.29871694]
[1755433215648,9.56755944,118450.0,118440.0,0.29871694]
[1755433215860,9.69691944,118450.0,118440.0,0.29871694]
[1755433221853,9.69691944,118450.0,118440.0,0.12985507]
[1755433222999,9.69691944,118450.0,118440.0,0.08998147]
[1755433223225,9.69691944,118450.0,118440.0,0.01966902]
[1755433241457,9.70559223,118450.0,118440.0,0.01966902]
[1755433241837,9.69691944,118450.0,118440.0,0.01966902]
[1755433244425,9.69691944,118450.0,118440.0,0.01922902]
[1755433257310,9.69771944,118450.0,118440.0,0.01922902]
[1755433263573,9.7135436,118450.0,118440.0,0.01922902]
[1755433265259,9.69771944,118450.0,118440.0,0.01922902]
[1755433272747,9.69771944,118450.0,118440.0,0.002]
[1755433274097,9.69326944,118450.0,118440.0,0.02140902]
[1755433274263,9.56047526,118450.0,118440.0,0.02140902]
[1755433274463,9.69133944,118450.0,118440.0,0.0439685]
[1755433274864,9.68923526,118450.0,118440.0,0.21283037]
[1755433275094,9.39162765,118450.0,118440.0,0.21283037]
[1755433275294,9.56257944,118450.0,118440.0,0.21283037]
[1755433275506,9.39373183,118450.0,118440.0,0.21283037]
[1755433276041,9.39162765,118450.0,118440.0,0.19348089]
[1755433276260,9.56047526,118450.0,118440.0,0.19348089]
[1755433276471,9.56257944,118450.0,118440.0,0.19348089]
[1755433277614,9.56047526,118450.0,118440.0,0.19348089]
[1755433279433,9.39162765,118450.0,118440.0,0.19348089]
[1755433279634,9.56257944,118450.0,118440.0,0.19348089]
[1755433280085,9.69129944,118450.0,118440.0,0.19348089]
[1755433280707,9.69129944,118450.0,118440.0,0.19027089]
[1755433282319,9.69650944,118450.0,118440.0,0.01944902]
[1755433282523,9.69730944,118450.0,118440.0,0.002]
[1755433284915,9.69730944,118450.0,118440.0,0.01944902]
[1755433307244,9.78212349,118450.0,118440.0,0.002]
[1755433308560,9.7979442,118450.0,118440.0,0.002]
[1755433312421,9.78212349,118450.0,118440.0,0.002]
[1755433312621,9.79794505,118450.0,118440.0,0.002]
[1755433317927,10.19417964,118450.0,118440.0,0.002]
[1755433318138,10.27900088,118450.0,118440.0,0.002]
[1755433318784,10.27900088,118450.0,118440.0,0.001]
[1755433319000,0.17099457,118420.0,118410.0,0.02061902]
[1755433319198,0.17099457,118420.0,118410.0,0.02272902]
[1755433322332,0.29999457,118420.0,118410.0,0.02055902]
[1755433322534,0.30099457,118420.0,118410.0,0.02255902]
[1755433323300,0.30099457,118420.0,118410.0,0.02247902]
[1755433323507,0.30609457,118420.0,118410.0,0.02247902]
[1755433323729,0.30609457,118420.0,118410.0,0.03944625]
[1755433326396,0.30609457,118420.0,118410.0,0.02247902]
[1755433327828,0.30304457,118420.0,118410.0,0.02247902]
[1755433328682,0.30099457,118420.0,118410.0,0.02247902]
[1755433332885,0.30099457,118420.0,118400.0,0.17208741]
[1755433333113,0.16890465,118410.0,118400.0,0.24549273]
[1755433333309,0.16890465,118410.0,118400.0,0.33031397]
[1755433333520,0.17100883,118410.0,118400.0,0.3292055]
[1755433334388,0.17105759,118410.0,118400.0,0.16963529]
[1755433334795,0.17105759,118410.0,118400.0,0.3385542]
[1755433334975,0.17105759,118410.0,118400.0,0.35600322]
[1755433335182,0.17105759,118410.0,118400.0,0.35700322]
[1755433335585,0.17410759,118410.0,118400.0,0.35655995]
[1755433335812,0.17410759,118410.0,118400.0,0.35555995]
[1755433336243,0.17410759,118410.0,118400.0,0.35655995]
[1755433337066,0.17410759,118410.0,118400.0,0.36518556]
[1755433338268,0.17410759,118410.0,118400.0,0.36514556]
[1755433347276,0.17410759,118410.0,118400.0,0.36267169]
[1755433354040,0.17624759,118410.0,118400.0,0.36267169]
[1755433362872,0.17410759,118410.0,118400.0,0.36267169]
[1755433365466,0.17624759,118410.0,118400.0,0.36267169]
[1755433367558,0.17624759,118410.0,118400.0,0.19375278]
[1755433369407,0.17624759,118410.0,118400.0,0.36267169]
[1755433376717,0.17624759,118410.0,118400.0,0.36083169]
[1755433390922,0.17624759,118410.0,118400.0,0.38621069]
[1755433391384,0.00734294,118410.0,118400.0,0.38621069]
[1755433391597,0.13610294,118410.0,118400.0,0.38621069]
[1755433392043,0.00520294,118410.0,118400.0,0.38621069]
[1755433392264,0.00215294,118410.0,118400.0,0.38621069]
[1755433400880,0.00215294,118410.0,118400.0,0.65291069]
[1755433405132,0.00517294,118410.0,118400.0,0.78163069]
[1755433410832,0.00517294,118410.0,118400.0,0.65291069]
[1755433411041,0.00517294,118410.0,118400.0,0.78159069]
[1755433411387,0.00517294,118410.0,118400.0,0.65291069]
[1755433411515,0.00517294,118410.0,118400.0,0.78159069]
[1755433414460,0.00517294,118410.0,118400.0,0.8190876]
[1755433414678,0.00517294,118410.0,118400.0,0.6904076]
[1755433414886,0.00517294,118410.0,118400.0,0.8190876]
[1755433415282,0.00718294,118410.0,118400.0,0.8190876]
[1755433415484,0.00718294,118410.0,118400.0,0.6904076]
[1755433415617,0.00718294,118410.0,118400.0,0.8190876]
[1755433420649,0.17608759,118410.0,118400.0,0.38652585]
[1755433420856,0.17608759,118410.0,118400.0,0.30170461]
[1755433421289,0.17608759,118410.0,118400.0,0.31915363]
[1755433423321,0.17608759,118410.0,118400.0,0.48807254]
[1755433423531,0.17608759,118410.0,118400.0,0.22137254]
[1755433423757,0.17608759,118410.0,118400.0,0.2999407]
[1755433426371,0.00718294,118410.0,118400.0,0.2999407]
[1755433428103,0.17608759,118410.0,118400.0,0.2999407]
[1755433428304,0.00718294,118410.0,118400.0,0.2999407]
[1755433429536,0.00517294,118410.0,118400.0,0.38475475]
[1755433430384,0.00718294,118410.0,118400.0,0.38475475]
[1755433436990,0.00215294,118410.0,118400.0,0.38475475]
[1755433438761,0.00521294,118410.0,118400.0,0.38475475]
[1755433441117,0.00521294,118410.0,118400.0,0.65145475]
[1755433443801,0.00215294,118410.0,118400.0,0.65145475]
[1755433444343,0.00520294,118410.0,118400.0,0.65145475]
[1755433445174,0.00520294,118410.0,118400.0,0.64969475]
[1755433447080,0.00721294,118410.0,118400.0,0.64969475]
[1755433448053,0.00721294,118410.0,118400.0,0.77837475]
[1755433450495,0.00628655,118410.0,118400.0,0.77837475]
[1755433456596,0.1751912,118410.0,118400.0,0.77837475]
[1755433456846,0.1751912,118410.0,118400.0,0.57112659]
[1755433457230,0.3038712,118410.0,118400.0,0.56326098]
[1755433458238,0.3038712,118410.0,118400.0,0.30952802]
[1755433458665,0.3038712,118410.0,118400.0,0.47844693]
[1755433458977,0.3038712,118410.0,118400.0,0.21174693]
[1755433459177,0.1751912,118410.0,118400.0,0.29018363]
[1755433489535,0.00628655,118410.0,118400.0,0.29018363]
[1755433489667,0.00427655,118410.0,118400.0,0.29018363]
[1755433489891,0.17197039,118420.0,118410.0,0.18635367]
[1755433490092,0.30271457,118420.0,118410.0,0.18649983]
[1755433490295,0.30271457,118420.0,118410.0,0.24090468]
[1755433490521,0.30271457,118420.0,118410.0,0.26628368]
[1755433491333,0.30476457,118420.0,118410.0,0.26628368]
[1755433492583,0.30676457,118420.0,118410.0,0.26728368]
[1755433493744,0.30676457,118420.0,118410.0,0.09837903]
[1755433494292,0.30676457,118420.0,118410.0,0.04397418]
[1755433500347,0.30676457,118420.0,118410.0,0.01859518]
[1755433500774,0.30676457,118420.0,118410.0,0.04397418]
[1755433501325,0.30676457,118420.0,118410.0,0.02652516]
[1755433501548,0.30756457,118420.0,118410.0,0.02652516]
[1755433502048,0.30756457,118420.0,118410.0,0.00114616]
[1755433511066,0.17892457,118420.0,118410.0,0.17005081]
[1755433511294,0.30756457,118420.0,118410.0,0.21179136]
[1755433511523,0.30756457,118420.0,118410.0,0.04288671]
[1755433512003,0.30676457,118420.0,118410.0,0.21179136]
[1755433512655,0.30676457,118420.0,118410.0,0.20334136]
[1755433514443,0.30756457,118420.0,118410.0,0.20334136]
[1755433514661,0.30676457,118420.0,118410.0,0.20334136]
[1755433516482,0.30676457,118420.0,118400.0,0.24735466]
[1755433516692,0.30676457,118420.0,118410.0,0.16890465]
[1755433518614,0.30756457,118420.0,118410.0,0.16890465]
[1755433518808,0.30676457,118420.0,118400.0,0.24735466]
[1755433519006,0.30756457,118420.0,118400.0,0.24735466]
[1755433519284,0.17100883,118410.0,118400.0,0.26480368]
[1755433519681,0.17424883,118410.0,118400.0,0.26480368]
[1755433520403,0.00534418,118410.0,118400.0,0.26480368]
[1755433520612,0.0059264,118410.0,118400.0,0.26480368]
[1755433521630,0.0059264,118410.0,118400.0,0.26580368]
[1755433522281,0.17694105,118410.0,118400.0,0.26680368]
[1755433522710,0.17794105,118410.0,118400.0,0.26780368]
[1755433530899,0.17794105,118410.0,118400.0,0.18936698]
[1755433533860,0.17794105,118410.0,118400.0,0.02044902]
[1755433534210,0.17794105,118410.0,118400.0,0.18936793]
[1755433535862,0.17794105,118410.0,118400.0,0.31804793]
[1755433536013,0.17794105,118410.0,118400.0,0.18936793]
[1755433536415,0.17794105,118410.0,118400.0,0.31804793]
[1755433537435,0.17794105,118410.0,118400.0,0.39762981]
[1755433540437,0.17794105,118410.0,118400.0,0.26894981]
[1755433540645,0.17794105,118410.0,118400.0,0.02044902]
[1755433543759,0.17794105,118410.0,118400.0,0.18936793]
[1755433571165,0.17583687,118410.0,118400.0,0.21474893]
[1755433571412,0.17794105,118410.0,118400.0,0.21474893]
[1755433574676,0.17583687,118410.0,118400.0,0.21474893]
[1755433574894,0.17794105,118410.0,118400.0,0.21474893]
[1755433575089,0.17794105,118410.0,118400.0,0.29432681]
[1755433578524,0.17583687,118410.0,118400.0,0.29432681]
[1755433578693,0.17794105,118410.0,118400.0,0.29432681]
[1755433580378,0.17794105,118410.0,118400.0,0.29192681]
[1755433582252,0.17794105,118410.0,118400.0,0.42052681]
[1755433584781,0.17794105,118410.0,118400.0,0.39706891]
[1755433587536,0.0036864,118410.0,118400.0,0.39706891]
[1755433588595,0.0066464,118410.0,118400.0,0.39706891]
[1755433590717,0.17555105,118410.0,118400.0,0.39706891]
[1755433590938,0.17766105,118410.0,118400.0,0.39706891]
[1755433596404,0.17555687,118410.0,118400.0,0.39706891]
[1755433596620,0.17766105,118410.0,118400.0,0.39706891]
[1755433597893,0.17555687,118410.0,118400.0,0.39706891]
[1755433598069,0.17766105,118410.0,118400.0,0.39706891]
[1755433598283,0.17555687,118410.0,118400.0,0.39706891]
[1755433598491,0.17766105,118410.0,118400.0,0.39706891]
[1755433599627,0.17555687,118410.0,118400.0,0.39706891]
[1755433599830,0.17766105,118410.0,118400.0,0.39706891]
[1755433601680,0.17555687,118410.0,118400.0,0.39706891]
[1755433601880,0.17766105,118410.0,118400.0,0.39706891]
[1755433603211,0.17555687,118410.0,118400.0,0.39706891]
[1755433603393,0.17766105,118410.0,118400.0,0.39706891]
[1755433605527,0.0087564,118410.0,118400.0,0.39706891]
[1755433606060,0.00665222,118410.0,118400.0,0.39706891]
[1755433606263,0.0087564,118410.0,118400.0,0.39706891]
[1755433608028,0.00665222,118410.0,118400.0,0.39706891]
[1755433608235,0.0087564,118410.0,118400.0,0.39706891]
[1755433609048,0.00665222,118410.0,118400.0,0.39706891]
[1755433609271,0.0087564,118410.0,118400.0,0.39706891]
[1755433610843,0.0066464,118410.0,118400.0,0.39706891]
[1755433611693,0.0036864,118410.0,118400.0,0.39706891]
[1755433612241,0.0068364,118410.0,118400.0,0.39706891]
[1755433621668,0.0088564,118410.0,118400.0,0.39706891]
[1755433627488,0.0036864,118410.0,118400.0,0.49933198]
[1755433630971,0.0066864,118410.0,118400.0,0.4197541]
[1755433631642,0.0087464,118410.0,118400.0,0.4197541]
[1755433643568,0.0066864,118410.0,118400.0,0.4197541]
[1755433643802,0.0036864,118410.0,118400.0,0.4197541]
[1755433645167,0.0066864,118410.0,118400.0,0.4197541]
[1755433646096,0.0066864,118410.0,118400.0,0.50457534]
[1755433646373,0.0066864,118410.0,118400.0,0.50265534]
[1755433646535,0.0036864,118410.0,118400.0,0.50265534]
[1755433648248,0.0036864,118410.0,118400.0,0.76935534]
[1755433658602,0.0067864,118410.0,118400.0,0.76935534]
[1755433660544,0.0067864,118410.0,118400.0,0.64075534]
[1755433660740,0.17767105,118410.0,118400.0,0.76923534]
[1755433660955,0.0087664,118410.0,118400.0,0.76923534]
[1755433665405,0.17767105,118410.0,118400.0,0.76923534]
[1755433668415,0.0087664,118410.0,118400.0,0.76923534]
[1755433710720,0.17767105,118410.0,118400.0,0.64075534]
[1755433710910,0.0087664,118410.0,118400.0,0.76919534]
[1755433711041,0.17767105,118410.0,118400.0,0.76919534]
[1755433712395,0.0087664,118410.0,118400.0,0.76767534]
[1755433712936,0.17767105,118410.0,118400.0,0.76767534]
[1755433716597,0.0087664,118410.0,118400.0,0.76767534]
[1755433717750,0.17767105,118410.0,118400.0,0.76767534]
[1755433719298,0.0087664,118410.0,118400.0,0.76767534]
[1755433720398,0.17767105,118410.0,118400.0,0.76767534]
[1755433732652,0.30687105,118410.0,118400.0,0.292081]
[1755433733322,0.17102309,118400.0,118390.0,0.15416005]
[1755433733575,0.17318309,118400.0,118390.0,0.26440586]
[1755433733829,0.17627309,118400.0,118390.0,0.13600586]
[1755433734067,0.17627309,118400.0,118390.0,0.12769483]
[1755433734303,0.17707309,118400.0,118390.0,0.02543176]
[1755433734757,0.17707309,118400.0,118390.0,0.02643176]
[1755433737026,0.17807309,118400.0,118390.0,0.02743176]
[1755433739444,0.17807309,118400.0,118390.0,0.06364582]
[1755433743863,0.17807309,118400.0,118390.0,0.02743176]
[1755433754754,0.17807309,118400.0,118390.0,0.02004722]
[1755433759266,0.17807309,118400.0,118390.0,0.01226764]
[1755433759470,0.17103736,118390.0,118380.0,0.57941632]
[1755433759675,0.17398736,118390.0,118380.0,0.68961337]
[1755433760356,0.17398736,118390.0,118380.0,0.77443461]
[1755433761069,0.17398736,118390.0,118380.0,0.77643461]
[1755433761773,0.17498736,118390.0,118380.0,0.77743461]
[1755433762722,0.17498736,118390.0,118380.0,0.77196132]
[1755433763369,0.17498736,118390.0,118380.0,0.77022681]
[1755433764555,0.17708736,118390.0,118380.0,0.77022681]
[1755433766882,0.17708736,118390.0,118380.0,0.77976208]
[1755433773160,0.17708736,118390.0,118380.0,0.77972208]
[1755433778429,0.17828736,118390.0,118380.0,0.77972208]
[1755433782422,0.00935418,118390.0,118380.0,0.77972208]
[1755433783579,0.17828736,118390.0,118380.0,0.77972208]
[1755433784093,0.17828736,118390.0,118380.0,0.7690214]
[1755433784296,0.00935418,118390.0,118380.0,0.7690214]
[1755433790018,0.17828736,118390.0,118380.0,0.7690214]
[1755433790772,0.00935418,118390.0,118380.0,0.7690214]
[1755433790973,0.00725418,118390.0,118380.0,0.7690214]
[1755433792377,0.00430418,118390.0,118380.0,0.7690214]
[1755433807528,0.00750418,118390.0,118380.0,0.7690214]
[1755433810913,0.00430418,118390.0,118380.0,0.7690214]
[1755433811137,0.00430418,118390.0,118380.0,0.5023214]
[1755433816986,0.00430418,118390.0,118380.0,0.7690214]
[1755433818702,0.0022,118390.0,118380.0,0.7690214]
[1755433818907,0.00430418,118390.0,118380.0,0.7690214]
[1755433823891,0.0022,118390.0,118380.0,0.7690214]
[1755433824050,0.00430418,118390.0,118380.0,0.7690214]
[1755433827575,0.0022,118390.0,118380.0,0.7690214]
[1755433827788,0.00430418,118390.0,118380.0,0.7690214]
[1755433829061,0.0022,118390.0,118380.0,0.7690214]
[1755433829486,0.0022,118390.0,118380.0,1.1090214]
[1755433829703,0.00430418,118390.0,118380.0,1.1090214]
[1755433831310,0.0022,118390.0,118380.0,1.1090214]
[1755433834954,0.00430418,118390.0,118380.0,1.1090214]
[1755433837404,0.0022,118390.0,118380.0,1.1090214]
[1755433837576,0.00430418,118390.0,118380.0,1.1090214]
[1755433840753,0.0022,118390.0,118380.0,1.1090214]
[1755433840986,0.00430418,118390.0,118380.0,1.1090214]
[1755433842094,0.00754418,118390.0,118380.0,1.1090214]
[1755433843516,0.00544,118390.0,118380.0,1.1090214]
[1755433843942,0.00754418,118390.0,118380.0,1.1090214]
[1755433844459,0.00951418,118390.0,118380.0,1.1090214]
[1755433844662,0.00741,118390.0,118380.0,1.1090214]
[1755433844866,0.00951418,118390.0,118380.0,1.1090214]
[1755433851842,0.00951418,118390.0,118380.0,0.9806214]
[1755433852105,0.00951418,118390.0,118380.0,1.1087814]
[1755433854732,0.00951418,118390.0,118380.0,0.7687814]
[1755433857024,0.17844736,118390.0,118380.0,0.7687814]
[1755433857238,0.17844736,118390.0,118380.0,0.5020814]
[1755433857459,0.00951418,118390.0,118380.0,0.5020814]
[1755433859202,0.17844736,118390.0,118380.0,0.5020814]
[1755433859666,0.00951418,118390.0,118380.0,0.5020814]
[1755433860277,0.17844736,118390.0,118380.0,0.5020814]
[1755433866078,0.00951418,118390.0,118380.0,0.5020814]
[1755433870336,0.00754418,118390.0,118380.0,0.5020814]
[1755433870930,0.00961418,118390.0,118380.0,0.5020814]
[1755433871170,0.00961418,118390.0,118380.0,0.4766984]
[1755433874345,0.00754418,118390.0,118380.0,0.4766984]
[1755433874552,0.00430418,118390.0,118380.0,0.4766984]
[1755433875403,0.00750418,118390.0,118380.0,0.4766984]
[1755433875630,0.00750418,118390.0,118380.0,0.5020814]
[1755433876028,0.0054,118390.0,118380.0,0.5020814]
[1755433876248,0.00750418,118390.0,118380.0,0.5020814]
[1755433877240,0.00957418,118390.0,118380.0,0.5020814]
[1755433877438,0.00747,118390.0,118380.0,0.5020814]
[1755433877659,0.00957418,118390.0,118380.0,0.5020814]
[1755433881272,0.00747,118390.0,118380.0,0.5020814]
[1755433881406,0.00957418,118390.0,118380.0,0.5020814]
[1755433881634,0.00750418,118390.0,118380.0,0.5020814]
[1755433884064,0.00957418,118390.0,118380.0,0.5020814]
[1755433895541,0.00750418,118390.0,118380.0,0.5020814]
[1755433897253,0.0054,118390.0,118380.0,0.5020814]
[1755433897458,0.00750418,118390.0,118380.0,0.5020814]
[1755433901669,0.0054,118390.0,118380.0,0.5020814]
[1755433901872,0.00750418,118390.0,118380.0,0.5020814]
[1755433902082,0.00952418,118390.0,118380.0,0.5020814]
[1755433920598,0.00750418,118390.0,118380.0,0.5020814]
[1755433927036,0.00430418,118390.0,118380.0,0.5020814]
[1755433932273,0.00430418,118390.0,118380.0,0.7687814]
[1755433932664,0.00430418,118390.0,118380.0,1.1087814]
[1755433933065,0.0022,118390.0,118380.0,1.1087814]
[1755433933436,0.00430418,118390.0,118380.0,1.1087814]
[1755433935532,0.0022,118390.0,118380.0,1.1087814]
[1755433935740,0.00430418,118390.0,118380.0,1.1326414]
[1755433936330,0.0022,118390.0,118380.0,1.1326414]
[1755433936628,0.00430418,118390.0,118380.0,1.1326414]
[1755433938855,0.0022,118390.0,118380.0,1.1326414]
[1755433938989,0.00430418,118390.0,118380.0,1.1326414]
[1755433939433,0.0022,118390.0,118380.0,1.1326414]
[1755433939833,0.00430418,118390.0,118380.0,1.1326414]
[1755433940987,0.0022,118390.0,118380.0,1.1326414]
[1755433941206,0.00430418,118390.0,118380.0,1.1326414]
[1755433942463,0.0022,118390.0,118380.0,1.1326414]
[1755433945623,0.00430418,118390.0,118380.0,1.1326414]
[1755433945870,0.0022,118390.0,118380.0,1.1326414]
[1755433950067,0.0022,118390.0,118380.0,1.5773414]
[1755433956940,4.878e-05,118400.0,118390.0,0.16893318]
[1755433957145,0.00316878,118400.0,118390.0,0.48401749]
[1755433957768,4.878e-05,118400.0,118390.0,0.50939249]
[1755433958432,0.00316878,118400.0,118390.0,0.50939249]
[1755433958650,0.00316878,118400.0,118390.0,0.51039249]
[1755433958854,0.00516878,118400.0,118390.0,0.51039249]
[1755433959267,0.00516878,118400.0,118390.0,0.51139249]
[1755433961755,0.00516878,118400.0,118390.0,0.77809249]
[1755433977480,0.00714878,118400.0,118390.0,0.77805249]
[1755433985919,0.00925296,118400.0,118390.0,0.77805249]
[1755433988405,0.00714878,118400.0,118390.0,0.77805249]
[1755433988619,0.00925296,118400.0,118390.0,0.77805249]
[1755433994366,0.00714878,118400.0,118390.0,0.77805249]
[1755433994602,0.00925296,118400.0,118390.0,0.77805249]
[1755433995691,0.00714878,118400.0,118390.0,0.77805249]
[1755433995913,0.00925296,118400.0,118390.0,0.77805249]
[1755433996546,0.00714878,118400.0,118390.0,0.77805249]
[1755433996763,0.00925296,118400.0,118390.0,0.77805249]
[1755433999176,0.00516878,118400.0,118390.0,0.77805249]
[1755433999383,0.00727296,118400.0,118390.0,0.77805249]
[1755433999898,0.00415296,118400.0,118390.0,0.77805249]
[1755434000318,0.00204878,118400.0,118390.0,0.77805249]
[1755434000729,0.00415296,118400.0,118390.0,0.77805249]
[1755434000968,0.00204878,118400.0,118390.0,0.77805249]
[1755434001189,0.00415296,118400.0,118390.0,0.77805249]
[1755434001400,0.00204878,118400.0,118390.0,0.77805249]
[1755434001635,0.00415296,118400.0,118390.0,0.77805249]
[1755434001851,0.00204878,118400.0,118390.0,0.77805249]
[1755434002296,0.00415296,118400.0,118390.0,0.77805249]
[1755434003011,0.00204878,118400.0,118390.0,0.77805249]
[1755434003454,0.00058222,118410.0,118400.0,0.18636793]
[1755434003649,0.00058222,118410.0,118400.0,0.42921566]
[1755434004383,0.00367222,118410.0,118400.0,0.45458866]
[1755434005053,0.00467222,118410.0,118400.0,0.45658866]
[1755434006276,0.00467222,118410.0,118400.0,0.45958866]
[1755434009279,0.00467222,118410.0,118400.0,0.72628866]
[1755434011303,0.00467222,118410.0,118400.0,0.76528453]
[1755434013372,0.00677222,118410.0,118400.0,0.76528453]
[1755434014604,0.0088764,118410.0,118400.0,0.74783551]
[1755434015048,0.0088764,118410.0,118400.0,1.10528453]
[1755434016567,0.0088764,118410.0,118400.0,0.97732453]
[1755434016775,0.0088764,118410.0,118400.0,1.10548453]
[1755434017811,0.0088764,118410.0,118400.0,1.10348453]
[1755434018073,0.0078764,118410.0,118400.0,1.10348453]
[1755434018334,0.0088764,118410.0,118400.0,0.83478453]
[1755434018825,0.0088764,118410.0,118400.0,0.83578453]
[1755434021982,0.0088764,118410.0,118400.0,0.45678866]
[1755434022906,0.17778105,118410.0,118400.0,0.45678866]
[1755434023729,0.17778105,118410.0,118400.0,0.72348866]
[1755434023730,0.17858105,118410.0,118400.0,0.72348866]
[1755434025445,0.0096764,118410.0,118400.0,0.72348866]
[1755434026529,0.17858105,118410.0,118400.0,0.72348866]
[1755434035463,0.0096764,118410.0,118400.0,0.72348866]
[1755434038760,0.17858105,118410.0,118400.0,0.72348866]
[1755434042880,0.0096764,118410.0,118400.0,0.72348866]
[1755434047388,0.0075764,118410.0,118400.0,0.72348866]
[1755434048146,0.0044864,118410.0,118400.0,0.72348866]
[1755434049813,0.0077064,118410.0,118400.0,0.72348866]
[1755434051573,0.0044864,118410.0,118400.0,0.72348866]
[1755434055239,0.0077064,118410.0,118400.0,0.72348866]
[1755434059319,0.0098464,118410.0,118400.0,0.72348866]
[1755434096288,0.0077064,118410.0,118400.0,0.72348866]
[1755434103894,0.00560222,118410.0,118400.0,0.72348866]
[1755434104108,0.0077064,118410.0,118400.0,0.72348866]
[1755434106818,0.0096564,118410.0,118400.0,0.72348866]
[1755434112309,0.0077064,118410.0,118400.0,0.72348866]
[1755434121010,0.0044864,118410.0,118400.0,0.72348866]
[1755434122973,0.00238222,118410.0,118400.0,0.72348866]
[1755434123152,0.0074164,118410.0,118400.0,0.72348866]
[1755434125517,0.00531222,118410.0,118400.0,0.72348866]
[1755434125745,0.0074164,118410.0,118400.0,0.72348866]
[1755434126938,0.00531222,118410.0,118400.0,0.72348866]
[1755434127144,0.0074164,118410.0,118400.0,0.72348866]
[1755434132613,0.00531222,118410.0,118400.0,0.72348866]
[1755434132810,0.0074164,118410.0,118400.0,0.72348866]
[1755434134784,0.0036864,118410.0,118400.0,0.72348866]
[1755434135671,0.0068964,118410.0,118400.0,0.72348866]
[1755434136892,0.0036864,118410.0,118400.0,0.72348866]
[1755434137780,0.0068964,118410.0,118400.0,0.72348866]
[1755434138600,0.0088464,118410.0,118400.0,0.72348866]
[1755434147453,0.0068964,118410.0,118400.0,0.72348866]
[1755434166116,0.0088864,118410.0,118400.0,0.72348866]
[1755434174831,0.00678222,118410.0,118400.0,0.72348866]
[1755434174977,0.0088864,118410.0,118400.0,0.72348866]
[1755434184235,0.0088864,118410.0,118400.0,0.72364866]
[1755434193880,0.00678222,118410.0,118400.0,0.72364866]
[1755434194072,0.0088864,118410.0,118400.0,0.72364866]